Cogmind - Beta 16.1 @@@ ROGUE MODE // 2026.04.27 @ 19:03:27 Player: DwarfFeats Result: Self-destructed Performance ------------- Evolutions (1) 500 Regions Visited (3) 600 Robots Destroyed (17) 85 Value Destroyed (331) 331 Prototype IDs (0) 0 Alien Tech Used (0) 0 Bonus (0) 0 TOTAL SCORE: 1516 Bonus ------- None Cogmind --------- Core Integrity 321/400 Matter 290/300 Energy 265/265 System Corruption 0% Temperature Cool (0) Movement Flying (360) Ox4 Location -9/Materials Parts ------- > --- POWER (1) -------- Improved Ion Engine > --- PROPULSION (3) --- Flight Unit > --- UTILITY (3) ------ Small Storage Unit Signal Interpreter ECM Suite > --- WEAPON (2) ------- Heavy Flail > --- INVENTORY (8) ---- Light Ion Engine Improved Terrain Scanner Reactive Plating Heavy Flail Ripper Peak State ------------ > --- POWER ------------ Ion Engine > --- PROPULSION ------- Aluminum Leg Aluminum Leg > --- UTILITY ---------- Small Storage Unit Improved Terrain Scanner Reactive Plating > --- WEAPON ----------- Heavy Flail Ripper > --- INVENTORY -------- Light Ion Engine Light Treads Light Treads Flight Unit Flight Unit Improved Terrain Scanner Reactive Plating Datajack [Rating: 18] Favorites ----------- Power Improved Ion Engine Engine Improved Ion Engine Propulsion Aluminum Leg Leg Aluminum Leg Wheel Wheel Hover Unit Hover Unit Flight Unit Flight Unit Utility Small Storage Unit Device Improved Terrain Scanner Storage Small Storage Unit Processor Signal Interpreter Protection Reactive Plating Weapon Heavy Flail Energy Gun Small Laser Ballistic Gun Light Assault Rifle Impact Weapon Heavy Flail Slashing Weapon Ripper Special Melee Weapon Datajack Build | -11 -10 -10 -9 ------- Run | Yrd Mat Min Mat Slots Evolved 2 | . . . 2 Power . | . . . . Propulsion 1 | . . . 1 Utility 1 | . . . 1 Weapon . | . . . . Parts Attached 26 | 6 1 4 15 Power 4 | 1 . 1 2 Engine 4 | 1 . 1 2 Core . | . . . . Reactor . | . . . . Propulsion 10 | 2 . 2 6 Treads . | . . . . Leg 2 | . . 2 . Wheel 5 | 2 . . 3 Hover 1 | . . . 1 Flight 2 | . . . 2 Utility 6 | 1 . . 5 Device 2 | . . . 2 Storage 1 | 1 . . . Processor 1 | . . . 1 Hackware . | . . . . Protection 2 | . . . 2 Artifact . | . . . . Weapon 6 | 2 1 1 2 Energy Gun 1 | 1 . . . Energy Cannon . | . . . . Ballistic Gun 1 | 1 . . . Ballistic Cannon . | . . . . Launcher . | . . . . Special Weapon . | . . . . Impact Weapon 2 | . . . 2 Slashing Weapon 1 | . . 1 . Piercing Weapon . | . . . . Special Melee Weapon 1 | . 1 . . Unidentified Prototypes . | . . . . Parts Lost 9 | . 1 . 8 Power . | . . . . Propulsion 6 | . 1 . 5 Utility 2 | . . . 2 Weapon 1 | . . . 1 Highest Loss Streak 5 | . 1 . 5 To Critical Strikes . | . . . . Average Backups 5 | 3 7 5 5 Power . | . 1 . . Propulsion 2 | 2 4 2 1 Utility 1 | . . 1 1 Weapon 1 | . 1 1 1 Tool/Special . | . . . . Unused Backups 6 | . . . 6 Power 1 | . . . 1 Propulsion 2 | . . . 2 Utility 2 | . . . 2 Weapon 1 | . . . 1 Tool/Special . | . . . . Average Slot Usage (%) 85 | . 83 84 86 Engine 11 | . 14 14 11 Leg 9 | . . 27 5 Wheel 7 | . 26 . 7 Flight 6 | . . . 10 Device 2 | . . . 3 Storage 11 | . 14 14 11 Protection 10 | . . . 15 Energy Gun 3 | . 14 10 . Ballistic Gun 1 | . 10 2 . Impact Weapon 12 | . . . 19 Special Melee Weapon 4 | . 3 14 2 Peak Build Rating 18 | 6 6 9 18 Average Rating 12 | 4 5 6 16 On Entrance 5 | . 6 5 9 Avg Prop Armor Cover (%) . | . . . . Naked Turns . | . . . . Heaviest Build 38 | 12 12 14 38 Greatest Support 42 | 20 20 20 42 Greatest Overweight (x) 4 | . 1 . 4 Average Overweight (x) . | . . . 1 Largest Inventory Capacity 8 | 8 8 8 8 Average Capacity 7 | 6 8 8 8 Most Carried 8 | 6 8 8 8 Average Carried 5 | 4 7 5 5 Final Capacity 8 | 8 8 8 8 Final Carried 8 | 6 8 8 5 Class Distribution -------------------- 100% | Mutant Dominant Class ---------------- Mutant | -10/Materials Mutant | -10/Mines Mutant | -9/Materials Resources | -11 -10 -10 -9 ----------- Run | Yrd Mat Min Mat Matter Collected 490 | 237 . 54 199 Remotely . | . . . . Salvage Created 508 | . . 73 435 Parts 18 | . . 7 11 Haulers Intercepted . | . . . . Recyclers Shooed . | . . . . Parts Field Recycled . | . . . . Retrieved Matter . | . . . . Parts Self-Destructed . | . . . . Prevented . | . . . . Parts Restored . | . . . . Kills | -11 -10 -10 -9 ------- Run | Yrd Mat Min Mat Combat Hostiles Destroyed 14 | . . 5 9 Melee 3 | . . . 3 Guns 5 | . . 5 . Classes Destroyed 6 | . . 1 5 Worker 1 | . . . 1 Recycler 1 | . . . 1 Watcher 1 | . . . 1 Swarmer 8 | . . 5 3 Grunt 5 | . . . 5 Sentry 1 | . . . 1 Best Kill Streak 5 | . . 5 4 Combat Bots Only 5 | . . 5 3 Max Kills in Single Turn 1 | . . 1 1 Gunslinging . | . . . . Exploded . | . . . . Melee 1 | . . . 1 Uniques/NPCs Destroyed . | . . . . Combat | -11 -10 -10 -9 -------- Run | Yrd Mat Min Mat Hostile Shots Fired 160 | . 33 26 101 Missed 43 | . 14 9 20 Hits 117 | . 19 17 81 Projectile 117 | . 19 17 81 Critical Strikes 1 | . . 1 . Damage Taken 1166 | . 210 144 812 Core 139 | . 45 15 79 Absorbed by Shields . | . . . . Ignored by Resistances 55 | . . . 55 Core Remaining (%) 88 | 100 . 76 . Volleys Fired 20 | . 4 16 . Largest 2 | . 2 1 . Hottest 60 | . 60 40 . Shots Fired 24 | . 8 16 . Gun 24 | . 8 16 . Cannon . | . . . . Launcher . | . . . . Special . | . . . . Kinetic 4 | . 4 . . Thermal 20 | . 4 16 . Explosive . | . . . . Electromagnetic . | . . . . Robot Hit Streak 5 | . 1 5 . Robot Miss Streak 4 | . 1 4 . Penetration Max . | . . . . Secondary Targets . | . . . . Shots Hit Robots 40 | . 4 13 23 Core Hits 10 | . 2 5 3 Critical Kills 1 | . . . 1 Critical Parts Destroyed 5 | . . . 5 Critical Strikes 6 | . . . 6 Smash 6 | . . . 6 Melee Attacks 43 | . . 5 38 Impact 36 | . . . 36 Slashing . | . . . . Piercing . | . . . . Sneak Attacks 4 | . . 2 2 Combat Hostiles . | . . . . Follow-up Attacks 5 | . . . 5 Damage Inflicted 1335 | . 31 114 1190 Guns 145 | . 31 114 . Cannons . | . . . . Explosions . | . . . . Melee 1187 | . . . 1187 Ramming 3 | . . . 3 Kinetic 31 | . 31 . . Thermal 114 | . . 114 . Explosive . | . . . . Electromagnetic . | . . . . Impact 1187 | . . . 1187 Slashing . | . . . . Piercing . | . . . . Highest Corruption . | . . . . Average Corruption . | . . . . Corruption Purged . | . . . . Corruption Blocked . | . . . . Overload Shots . | . . . . Overflow Damage 308 | . . . 308 Projectiles . | . . . . Explosions . | . . . . Melee 308 | . . . 308 Knockbacks 6 | . . . 6 Impact 6 | . . . 6 Kinetic . | . . . . Secondary . | . . . . Self-Inflicted Damage 1 | . . . 1 Shots . | . . . . Rammed 2 | . . . 2 Targets Rammed 2 | . . . 2 Kicked . | . . . . Crushed . | . . . . Highest Temperature 46 | . 46 . 2 Average Temperature 22 | . 24 . 2 Received Heat Transfer 402 | . 114 . 288 Siege Activations . | . . . . Martial Activations . | . . . . Shielding Activations . | . . . . Robots Disrupted . | . . . . Combat Hostiles . | . . . . Robots Corrupted 6 | . . . 6 Combat Hostiles 6 | . . . 6 Parts Fried 8 | . . . 8 Impact Corruptions 13 | . . . 13 Robots Melted . | . . . . Combat Hostiles . | . . . . Parts Melted . | . . . . Heat Transferred 250 | . . 250 . Parts Sabotaged . | . . . . Parts Stolen . | . . . . Parts Stripped . | . . . . Power Chain Reactions . | . . . . Alert | -11 -10 -10 -9 ------- Run | Yrd Mat Min Mat Maximum Alert Level . | . . . . Low Security (%) 100 | 100 100 100 100 Level 1 . | . . . . Level 2 . | . . . . Level 3 . | . . . . Level 4 . | . . . . Level 5 . | . . . . High Security . | . . . . Max Security . | . . . . Peak Influence 130 | . 45 130 67 Initial 31 | . . 9 31 Average 21 | . 8 46 16 Influence Increases 433 | . 45 150 238 Destroy 0b10 Robot/C 280 | . . 100 180 Destroy 0b10 Robot/NC 15 | . . . 15 Destroy Leader 62 | . . 20 42 Successful Hack 1 | . . . 1 Lose Combat Pursuer 75 | . 45 30 . Influence Decreases 433 | . 20 95 318 Entered New Map 65 | . . 16 49 Time Decay 311 | . 10 79 222 Lost Part 57 | . 10 . 47 Squads Dispatched 3 | . 1 . 2 Investigation 1 | . . . 1 Extermination . | . . . . Reinforcement 2 | . 1 . 1 Assault . | . . . . Garrison . | . . . . Intercept . | . . . . Searches Triggered . | . . . . Construction Impeded . | . . . . Haulers Reinforced . | . . . . Active Scanning Responses . | . . . . Cargo Convoy Interrupts . | . . . . Stealth | -11 -10 -10 -9 --------- Run | Yrd Mat Min Mat Distress Signals 3 | . 1 . 2 Communications Jammed . | . . . . Distress Signals . | . . . . Times Spotted 42 | . 8 6 28 Peak Tracking Total 6 | . 4 3 6 Tactical Retreats 7 | . 1 2 4 ECM-based Alert Blocks 9 | . . . 9 Traps | -11 -10 -10 -9 ------- Run | Yrd Mat Min Mat Traps Triggered 1 | . . . 1 Indirectly . | . . . . Trap Hack Attempts . | . . . . Triggered . | . . . . Disarmed . | . . . . Reprogrammed . | . . . . Reused . | . . . . Traps Extracted . | . . . . Installed . | . . . . Triggered . | . . . . Machines | -11 -10 -10 -9 ---------- Run | Yrd Mat Min Mat Machines Disabled . | . . . . Max in Single Turn . | . . . . Machines Repaired . | . . . . Machines Dismantled . | . . . . Machines Sabotaged . | . . . . Overloaded Fab Kills . | . . . . Hacking | -11 -10 -10 -9 --------- Run | Yrd Mat Min Mat Machines Accessed 2 | . . . 2 Terminals 1 | . . . 1 Fabricators . | . . . . Repair Stations . | . . . . Recycling Units 1 | . . . 1 Scanalyzers . | . . . . Garrison Access . | . . . . Total Hacks 5 | . . . 5 Successful 2 | . . . 2 Failed 3 | . . . 3 Catastrophic . | . . . . Database Lockouts . | . . . . Manual . | . . . . Terminals 1 | . . . 1 Fabricators . | . . . . Repair Stations . | . . . . Recycling Units 4 | . . . 4 Scanalyzers . | . . . . Garrison Access . | . . . . Terminal Hacks . | . . . . Fabricator Hacks . | . . . . Repair Station Hacks . | . . . . Recycling Unit Hacks 2 | . . . 2 Recycle Component 1 | . . . 1 Process 1 | . . . 1 Scanalyzer . | . . . . Garrison Access Hacks . | . . . . Unauthorized Hacks . | . . . . Terminals . | . . . . Fabricators . | . . . . Repair Stations . | . . . . Recycling Units . | . . . . Scanalyzers . | . . . . Garrison Access . | . . . . Data Cores Recovered . | . . . . Used . | . . . . Hacking Detections 2 | . . . 2 Full Trace Events 1 | . . . 1 Feedback Events . | . . . . Feedback Blocked . | . . . . Robot Schematics Acquired . | . . . . Robots Built . | . . . . Authchips . | . . . . Time . | . . . . Total Robot Build Rating . | . . . . Part Schematics Acquired . | . . . . Parts Built . | . . . . Authchips . | . . . . Time . | . . . . Total Part Build Rating . | . . . . Part Studies Acquired . | . . . . Parts Repaired . | . . . . Time . | . . . . Parts Recycled 1 | . . . 1 Recycled Matter 119 | . . . 119 Retrieved Matter . | . . . . Retrieved Components . | . . . . Parts Scanalyzed . | . . . . Part Schematics Acquired . | . . . . Parts Damaged . | . . . . Bothacking | -11 -10 -10 -9 ------------ Run | Yrd Mat Min Mat Used RIF Installer . | . . . . Robots Hacked 1 | . . 1 . Non-combat . | . . . . Combat 1 | . . 1 . Robot Hacks Applied 1 | . . 1 . parse_system 1 | . . 1 . Relay Couplers Released . | . . . . Fabnet Peak Effective % . | . . . . Robots Rewired . | . . . . Allies Hacked . | . . . . Hacks Repelled . | . . . . Allies | -11 -10 -10 -9 -------- Run | Yrd Mat Min Mat Total Allies . | . . . . Largest Group . | . . . . Highest-Rated Group . | . . . . Highest-Rated Ally . | . . . . Total Orders . | . . . . Ally Attacks . | . . . . Total Damage . | . . . . Kills . | . . . . Allies Corrupted . | . . . . Allies Melted . | . . . . Intel | -11 -10 -10 -9 ------- Run | Yrd Mat Min Mat Active Infowar (turns) 232 | . . . 232 Terrain 128 | . . . 128 ECM 104 | . . . 104 Robot Analysis Total . | . . . . Derelict Logs Recovered . | . . . . Drone Launches . | . . . . Drone Recoveries . | . . . . Exploration | -11 -10 -10 -9 ------------- Run | Yrd Mat Min Mat Turns Passed 1230 | 53 115 268 794 Spaces Moved 708 | 47 121 181 359 Core 7 | 7 . . . Treads . | . . . . Legs 265 | . . 181 84 Wheels 345 | 40 121 . 184 Hover . | . . . . Flight 91 | . . . 91 Fastest Speed 50 | 50 80 120 90 Average Speed 142 | 75 81 120 182 Slowest Speed 357 | 80 95 120 357 Overloaded Moves . | . . . . Propulsion Burnouts . | . . . . Robots Hopped . | . . . . Potential Cave-ins . | . . . . Cave-ins Triggered . | . . . . Exploration Rate (%) 27 | 3 29 47 29 Regions Visited 3 Branch Regions 1 Pre-discovered Areas . | . . . . Known Exits Taken . | . . . . Unknown Exits Taken 3 | 1 1 1 . Scrap Searched . | . . . . Spaces Dug . | . . . . Terrain Destroyed . | . . . . Melee . | . . . . Projectile . | . . . . AOE . | . . . . Terrain Rammed . | . . . . Walls Destroyed . | . . . . Machines Disabled . | . . . . Actions | -11 -10 -10 -9 --------- Run | Yrd Mat Min Mat Total 856 | 64 129 213 450 Wait 17 | . . . 17 Move 705 | 46 120 180 359 Hop . | . . . . Pick Up 32 | 12 2 4 14 Fast Attach . | . . . . Attach 18 | 6 1 1 10 Detach 1 | . 1 . . Swap 15 | . 1 4 10 Drop 11 | . . 3 8 Fire 20 | . 4 16 . Melee 35 | . . 5 30 Ram 2 | . . . 2 Kick . | . . . . Crush . | . . . . Escape Stasis . | . . . . Rewire . | . . . . Trap . | . . . . Miscellaneous . | . . . . Route ------- -11/Scrapyard -10/Materials -10/Mines -9/Materials (discovered 2 exits: [*Mat] / [*Min]) History --------- Turn | Location | Event 2 | -11/Scrapyard | Met Revision 17 7 | -11/Scrapyard | Discovered new exit (range 15) 54 | -11/Scrapyard | Entered Materials 129 | -10/Materials | Discovered new exit (range 15) 169 | -10/Materials | Entered Mines 203 | -10/Mines | Met a Derelict bent on vengeance 291 | -10/Mines | Discovered new exit (range 9) 309 | -10/Mines | Build established: Mutant 381 | -10/Mines | Assembled infested the area 397 | -10/Mines | A weapon hastily lodged in a ceiling crevice suddenly fell to the ground 437 | -10/Mines | Entered Materials 437 | -9/Materials | Evolved 2 slots: Propulsion x1, Utility x1 729 | -9/Materials | Discovered new exit (range 16) 1222 | -9/Materials | Discovered new exit (range 9) 1231 | -9/Materials | Self-destructed Last Messages --------------- 01129_ R-06 Scavenger collects Corrupted Lgt. Assault Rifle. 01129_ Sneak attack on R-06 Scavenger. 01129_ R-06 Scavenger destroyed. 01130_ Acquired 21 matter. 01135_ Acquired Com. Wheel. 01136_ R-06 Scavenger collects Lgt. Treads. 01137_ Acquired 10 matter. 01145_ Acquired Signal Interpreter. 01190_ Connecting with Terminal... 01196_ Acquired 20 matter. 01215_ Com. Wheel destroyed. 01222_ EXIT=FOUND 01223_ C-30 ARC bursts open, deploying its payload. 01223_ S-10 Pest unfolds itself. 01223_ Com. Wheel destroyed. 01223_ Wheel destroyed. 01225_ Datajack destroyed. 01230_ Flight Unit destroyed. Map ----- +----------------------------------------------------+ | ???????????????????# #?????????#???????????????? | | ???????????????????# #?????????????????????????? | | ???????????????????# ########????????????????### | | ???????????????????# ##########+####### | | ???????????????????# " | | ???????????????????# " | | ???????????????????###### ########?????##### | | ????????????????????????# #####??????### #### | | ????????????????????????# ![ !#??????# # | | ????????????????????????# [ !#??????# / | | ????????????????#???????# a !#??????# """ # | | ?????????????????#??????# !#????#?# """ # | | ????????????????????????# ==/#??????# """?# | | ????????????????????????# /#??????# ?# | | ????????????????????????# #####???????####??# | | ???????????????????#??#?# #?????????????????# | | ????????????????????????# #?????????????##??# | | ????????????????????????# ################### | | ????????????????????????# r /^/ | | ????????????????????????# //// | | ????????????????????????# ! ^// | | ???????????????????? ???# ^*] | | ????????????????????????# ^ ######### | | ?????????? #######+## g ##???????? | | ?????????? k #? ????? ? | | ??????????? T @ #?????? ?? | | ?????????? k +????????? | | ?????????? ##+####### ####### #????????? | | ???????????????????????### ## # #???????#? | | ??????????????????? ?????# ## # #??####### | | ?????????????????????????# u ## # #??# | | ?????????????????????????# ## # #??# | | ?????????????????????????# s ## # #??# | | ?????????????????????????" # + #??# ### | | ???????????????????????? s # # #??# #?? | | ???????????????????????"| s # # #??# #?? | | ???????????????????????"" < # # #### #?? | | ??????????????????????#"! t # # #?? | | ???????????????????????" % # # #?? | | ???????????????????????""" # # """#?? | | ???????????????????????### ######## T"### | | ?????????????????????????# ?? ???# """# | | ????????????????????????? ???????# """ # | | ?????????????????????????? ???????# """ + | | ??????????????????????????????? ????# """ # " | | ????????????????????????????????????# % # " | | ????????????????????????????????????# % % # " | | ????????????????????????? ???? ?????#### ######### | | ???????????????????????????????????????# #??????#? | | ???????????????????????????????????????# #???????? | +----------------------------------------------------+ Best States ------------- Heat Dissipation 28 Energy Generation 12 Energy Capacity 265 Matter Stores 300 Matter Capacity 300 Sight Range 16 Terrain Scan Range 16 Terrain Scan Density 10 ECM Strength 1 Armor Coverage 300 Resistance: KI 20 Evasion (%) 55 Item Schematics ----------------- None Robot Schematics ------------------ None Fabricated ------------ Nothing Repaired ---------- Nothing Studied --------- None Alien Tech Used ----------------- None Achievements -------------- Overwhelming You Again Challenges ------------ None Game ------ Seed DoorProtonProjector Manual? 0 Play Time 00:25:52 Cumulative 9.2 hours Start 2026.04.27 @ 18:35:54 End 2026.04.27 @ 19:03:27 Sessions 1 Manual Loads 0 Difficulty Rogue Special Mode None Game No. 11 Rogue 11 Adventurer 0 Explorer 0 Win Type - Total 0 Types 0/0/0/0/0/0/0/0/0/0 Lore% 4 Gallery% 11 Achievement% 9 Wizard Run 0 Options --------- Layout 1 ASCII 0 Keyboard 0 Movement Numpad Keybinds 0 Fullscreen 1 Font 24/Smallcaps Map View 50x35 Zoom Use 0% Tactical HUD 1 Map Filters NONE Filters NONE Steam 1 RUN: 6917a9ed-310f-45b4-b316-a4b49db9c27e